fUST/lending_fUST_20250614
["ID","MTS","AMOUNT","RATE_DAILY","PERIOD"]
[365718551,1749849033830,-460.0,0.00021643,4]
[365718552,1749849033841,-1305.37,0.00021643,4]
[365718553,1749849033850,-897.99,0.00021643,4]
[365718554,1749849033860,-460.0,0.00021643,4]
[365718555,1749849033870,-5854.95,0.00021643,4]
[365718556,1749849033880,-460.0,0.00021643,4]
[365718557,1749849033890,-460.0,0.00021643,4]
[365718558,1749849033899,-460.0,0.00021643,4]
[365718559,1749849033910,-500.0,0.00021656,2]
[365718560,1749849033920,-895.44837825,0.000219,6]
[365718561,1749849033930,-804.67,0.00021904,10]
[365718562,1749849033940,-225.0,0.00021914,2]
[365718563,1749849033949,-250.0,0.00021914,2]
[365718564,1749849033960,-460.0,0.00021915,4]
[365718565,1749849033970,-460.0,0.00021915,4]
[365718566,1749849033980,-460.0,0.00021916,4]
[365718567,1749849033989,-460.0,0.00021916,4]
[365718568,1749849033999,-503.34,0.00021916,4]
[365718569,1749849034011,-582.67,0.00021916,4]
[365718570,1749849034021,-752.24,0.00021916,4]
[365718571,1749849034031,-500.0,0.00021917,4]
[365718572,1749849034041,-500.0,0.00021917,4]
[365718573,1749849034051,-460.0,0.00021917,2]
[365718574,1749849034062,-1352.84,0.00021917,4]
[365718575,1749849034072,-520.57,0.00021917,4]
[365718576,1749849034081,-792.35,0.00021917,4]
[365718577,1749849034092,-1130.26,0.00021917,4]
[365718578,1749849034102,-761.79,0.00021917,4]
[365718579,1749849034112,-460.0,0.00021917,4]
[365718580,1749849034122,-1164.15,0.00021917,4]
[365718581,1749849034132,-460.0,0.00021917,4]
[365718582,1749849034142,-460.0,0.00021917,4]
[365718583,1749849034152,-626.84,0.00021917,4]
[365718584,1749849034162,-460.0,0.00021917,4]
[365718585,1749849034172,-553.24574625,0.00021917,4]
[365718586,1749849034182,-460.0,0.00021917,4]
[365718587,1749849034192,-990.32,0.00021917,4]
[365718588,1749849034202,-460.0,0.00021917,4]
[365718589,1749849034212,-1305.37,0.00021917,4]
[365718590,1749849034222,-897.99,0.00021917,4]
[365718591,1749849034232,-460.0,0.00021917,4]
[365718592,1749849034242,-5854.95,0.00021917,4]
[365718593,1749849034252,-460.0,0.00021917,4]
[365718594,1749849034262,-460.0,0.00021917,4]
[365718595,1749849034271,-460.0,0.00021917,4]
[365718596,1749849034281,-1551.53,0.00022,7]
[365718597,1749849034297,-165.0,0.00022,2]
[365718598,1749849034307,-895.44837804,0.00022003,6]
[365718599,1749849034317,-3536.0,0.00022078,2]
[365718600,1749849034326,-311.75260451,0.00022094,2]
[365718601,1749849034336,-895.44837804,0.00022107,6]
[365718602,1749849034346,-511.45340538,0.0002212,2]
[365718603,1749849034356,-310.3659653,0.00022152,2]
[365718604,1749849034366,-548.48,0.00022181,3]
[365718605,1749849034375,-274.24,0.00022181,3]
[365718606,1749849034385,-822.74,0.00022181,3]
[365718607,1749849034395,-500.0,0.00022189,2]
[365718608,1749849034404,-460.0,0.00022189,4]
[365718609,1749849034414,-460.0,0.00022189,4]
[365718610,1749849034424,-460.0,0.0002219,4]
[365718611,1749849034434,-460.0,0.0002219,4]
[365718612,1749849034444,-500.0,0.0002219,2]
[365718613,1749849034453,-503.34,0.0002219,4]
[365718614,1749849034464,-582.67,0.0002219,4]
[365718615,1749849034475,-752.24,0.0002219,4]
[365718616,1749849034484,-424.16,0.00022191,2]
[365718617,1749849034494,-1352.84,0.00022191,4]
[365718618,1749849034503,-520.57,0.00022191,4]
[365718619,1749849034514,-792.35,0.00022191,4]
[365718620,1749849034524,-1130.26,0.00022191,4]
[365718621,1749849034534,-761.79,0.00022191,4]
[365718622,1749849034543,-460.0,0.00022191,4]
[365718623,1749849034554,-1164.15,0.00022191,4]
[365718624,1749849034563,-460.0,0.00022191,4]
[365718625,1749849034572,-460.0,0.00022191,4]
[365718626,1749849034582,-626.84,0.00022191,4]
[365718627,1749849034591,-460.0,0.00022191,4]
[365718628,1749849034601,-460.0,0.00022191,4]
[365718629,1749849034610,-990.32,0.00022191,4]
[365718630,1749849034619,-460.0,0.00022191,4]
[365718631,1749849034627,-1305.37,0.00022191,4]
[365718632,1749849034637,-897.99,0.00022191,4]
[365718633,1749849034646,-460.0,0.00022191,4]
[365718634,1749849034655,-5854.95,0.00022191,4]
[365718635,1749849034665,-460.0,0.00022191,4]
[365718636,1749849034674,-460.0,0.00022191,4]
[365718637,1749849034683,-460.0,0.00022191,4]
[365718638,1749849034692,-997.99531911,0.00022204,2]
[365718639,1749849034701,-895.44837804,0.0002221,6]
[365718640,1749849034710,-3536.0,0.00022267,2]
[365718641,1749849034719,-1285.0,0.00022312,2]
[365718642,1749849034728,-895.44837804,0.00022314,7]
[365718643,1749849034738,-254.77268797,0.00022365,2]
[365718644,1749849034747,-160.0,0.00022392,3]
[365718645,1749849034757,-895.44837804,0.00022417,7]
[365718646,1749849034766,-380.0,0.00022463,4]
[365718647,1749849034776,-460.0,0.00022463,4]
[365718648,1749849034786,-460.0,0.00022464,4]
[365718649,1749849034796,-460.0,0.00022464,4]
[365718650,1749849034805,-503.34,0.00022464,4]
[365718651,1749849034814,-582.67,0.00022464,4]
[365718652,1749849034823,-752.24,0.00022464,4]
[365718653,1749849034832,-1352.84,0.00022465,4]
[365718654,1749849034841,-520.57,0.00022465,4]
[365718655,1749849034851,-792.35,0.00022465,4]
[365718656,1749849034861,-1130.26,0.00022465,4]
[365718657,1749849034870,-761.79,0.00022465,4]
[365718658,1749849034880,-460.0,0.00022465,4]
[365718659,1749849034889,-1164.15,0.00022465,4]
[365718660,1749849034898,-460.0,0.00022465,4]
[365718661,1749849034908,-460.0,0.00022465,4]
[365718662,1749849034918,-626.84,0.00022465,4]
[365718663,1749849034927,-408.00206632,0.00022465,4]
[365718664,1749849034936,-460.0,0.00022465,4]
[365718665,1749849034947,-990.32,0.00022465,4]
[365718666,1749849034956,-460.0,0.00022465,4]
[365718667,1749849034965,-1305.37,0.00022465,4]
[365718668,1749849034975,-897.99,0.00022465,4]
[365718669,1749849034984,-460.0,0.00022465,4]
[365718670,1749849034994,-5854.95,0.00022465,4]
[365718671,1749849035003,-460.0,0.00022465,4]
[365718672,1749849035013,-460.0,0.00022465,4]
[365718673,1749849035023,-460.0,0.00022465,4]
[365718674,1749849035032,-14779.20029123,0.000225,7]
[365718709,1749849038166,-698.79,0.00021095,4]
[365718712,1749849038176,-698.79,0.00021369,4]
[365718714,1749849038187,-455.0,0.00021913,2]
[365718716,1749849038197,-500.0,0.00021913,2]
[365718718,1749849038206,-337.79148677,0.00021913,2]
[365718720,1749849038215,-500.0,0.00021913,2]
[365718722,1749849038225,-500.0,0.00021913,2]
[365718724,1749849038234,-500.0,0.00021913,2]
[365718726,1749849038243,-500.0,0.00021913,2]
[365718727,1749849038252,-500.0,0.00021913,2]
[365718730,1749849038261,-500.0,0.00021913,2]
[365718732,1749849038271,-463.27763364,0.00021913,2]
[365718734,1749849038281,-500.0,0.00021913,2]
[365718735,1749849038290,-500.0,0.00021913,2]
[365718737,1749849038300,-500.0,0.00021913,2]
[365718740,1749849038309,-500.0,0.00021913,2]
[365718742,1749849038319,-500.0,0.00021913,2]
[365718744,1749849038328,-517.89999263,0.00021913,2]
[365718746,1749849038338,-500.0,0.00021913,2]
[365718748,1749849038347,-500.0,0.00021913,2]
[365718750,1749849038356,-500.0,0.00021913,2]
[365718752,1749849038366,-500.0,0.00021913,2]
[365718754,1749849038375,-364.33840432,0.00021913,2]
[365718756,1749849038384,-500.0,0.00021913,2]
[365718758,1749849038393,-500.0,0.00021913,2]
[365718759,1749849038403,-500.0,0.00021913,2]
[365718761,1749849038413,-500.0,0.00021913,2]
[365718763,1749849038423,-500.0,0.00021913,2]
[365718766,1749849038432,-500.0,0.00022466,2]
[365718768,1749849038442,-500.0,0.00022466,2]
[365718770,1749849038451,-500.0,0.00022466,2]
[365718772,1749849038461,-500.0,0.00022466,2]
[365718773,1749849038474,-500.0,0.00022466,2]
[365718776,1749849038484,-500.0,0.00022466,2]
[365718778,1749849038493,-500.0,0.00022466,2]
[365718779,1749849038503,-500.0,0.00022466,2]
[365718782,1749849038513,-500.0,0.00022466,2]
[365718783,1749849038523,-500.0,0.00022466,2]
[365718785,1749849038532,-500.0,0.00022466,2]
[365718787,1749849038542,-500.0,0.00022466,2]
[365718789,1749849038557,-500.0,0.00022466,2]
[365718791,1749849038567,-500.0,0.00022466,2]
[365718792,1749849038577,-500.0,0.00022466,2]
[365718793,1749849038586,-500.0,0.00022466,2]
[365718794,1749849038596,-500.0,0.00022466,2]
[365718796,1749849038606,-500.0,0.00022466,2]
[365718797,1749849038614,-500.0,0.00022466,2]
[365718798,1749849038624,-314.99943555,0.00022466,2]
[365718799,1749849038632,-500.0,0.00022466,2]
[365718800,1749849038642,-500.0,0.00022466,2]
[365718801,1749849038651,-500.0,0.00022466,2]
[365718802,1749849038661,-500.0,0.00022466,2]
[365718803,1749849038672,-500.0,0.00022466,2]
[365718804,1749849038681,-500.0,0.00022466,2]
[365718805,1749849038691,-500.0,0.00022466,2]
[365718806,1749849038700,-102596.14970877,0.000225,7]
[365718807,1749849038709,-895.44837804,0.00022521,7]
[365718808,1749849038719,-895.44837804,0.00022624,7]
[365718809,1749849038728,-311.75260451,0.00022644,2]
[365718810,1749849038738,-254.77268796,0.00022699,2]
[365718811,1749849038747,-895.44837804,0.00022728,7]
[365718812,1749849038756,-8666.97855194,0.0002273,2]
[365718813,1749849038766,-460.0,0.00022737,4]
[365718814,1749849038775,-460.0,0.00022738,4]
[365718815,1749849038785,-460.0,0.00022738,4]
[365718816,1749849038794,-503.34,0.00022738,4]
[365718817,1749849038804,-582.67,0.00022738,4]
[365718818,1749849038813,-752.24,0.00022738,4]
[365718819,1749849038823,-1352.84,0.00022739,4]
[365718820,1749849038832,-520.57,0.00022739,4]
[365718821,1749849038842,-1130.26,0.00022739,4]
[365718822,1749849038851,-761.79,0.00022739,4]
[365718823,1749849038860,-1164.15,0.00022739,4]
[365718824,1749849038870,-460.0,0.00022739,4]
[365718825,1749849038879,-626.84,0.00022739,4]
[365718826,1749849038889,-460.0,0.00022739,4]
[365718827,1749849038899,-990.32,0.00022739,4]
[365718828,1749849038909,-460.0,0.00022739,4]
[365718829,1749849038918,-1305.37,0.00022739,4]
[365718830,1749849038928,-897.99,0.00022739,4]
[365718831,1749849038937,-460.0,0.00022739,4]
[365718832,1749849038946,-5854.95,0.00022739,4]
[365718833,1749849038955,-460.0,0.00022739,4]
[365718834,1749849038965,-460.0,0.00022739,4]
[365718835,1749849038975,-460.0,0.00022739,4]
[365718836,1749849038985,-500.0,0.00022763,2]
[365718837,1749849038994,-526.30038804,0.00022763,2]
[365718838,1749849039004,-12531.02669373,0.00022764,2]
[365718839,1749849039013,-160.0,0.00022764,2]
[365718840,1749849039023,-160.0,0.00022764,2]
[365718841,1749849039032,-229.78555783,0.00022764,2]
[365718842,1749849039042,-424.32678023,0.00022764,2]
[365718843,1749849039051,-835.28007164,0.00022764,2]
[365718844,1749849039061,-160.0,0.00022764,2]
[365718845,1749849039070,-160.0,0.00022764,2]
[365718846,1749849039080,-160.0,0.00022764,2]
[365718847,1749849039090,-160.0,0.00022764,2]
[365718848,1749849039099,-160.0,0.00022764,2]
[365718849,1749849039109,-160.0,0.00022764,2]
[365718850,1749849039119,-213.24139183,0.00022764,2]
[365718851,1749849039129,-227.42880251,0.00022773,2]
[365718852,1749849039138,-310.26841365,0.00022773,2]
[365718853,1749849039153,-304.63792749,0.00022773,2]
[365718854,1749849039163,-500.0,0.00022773,2]
[365718855,1749849039173,-151.0,0.0002283,2]
[365718856,1749849039183,-151.0,0.0002283,2]
[365718857,1749849039192,-151.0,0.0002283,2]
[365718858,1749849039201,-151.0,0.0002283,2]
[365718859,1749849039212,-151.0,0.0002283,2]
[365718860,1749849039221,-1688.0,0.0002283,2]
[365718861,1749849039230,-216.63087839,0.0002283,2]
[365718862,1749849039240,-151.0,0.0002283,2]
[365718863,1749849039249,-270.98328894,0.0002283,2]
[365718864,1749849039259,-5000.0,0.0002283,2]
[365718865,1749849039268,-500.0,0.0002283,2]
[365718866,1749849039278,-2408.23524761,0.0002283,2]
[365718867,1749849039287,-500.0,0.0002283,2]
[365718868,1749849039297,-500.0,0.0002283,2]
[365718869,1749849039307,-500.0,0.0002283,2]
[365718870,1749849039317,-500.0,0.0002283,2]
[365718871,1749849039326,-500.0,0.0002283,2]
[365718872,1749849039336,-500.0,0.0002283,2]
[365718873,1749849039345,-500.0,0.0002283,2]
[365718874,1749849039355,-500.0,0.0002283,2]
[365718875,1749849039365,-207.4,0.0002283,2]
[365718876,1749849039374,-500.0,0.0002283,2]
[365718877,1749849039383,-500.0,0.0002283,2]
[365718878,1749849039392,-500.0,0.0002283,2]
[365718879,1749849039402,-500.0,0.0002283,2]
[365718880,1749849039411,-500.0,0.0002283,2]
[365718881,1749849039421,-500.0,0.0002283,2]
[365718882,1749849039430,-895.44837804,0.00022831,8]
[365718883,1749849039439,-1750.456,0.00022885,2]
[365718884,1749849039449,-3000.0,0.000229,2]
[365718885,1749849039458,-3000.0,0.0002291,2]
[365718886,1749849039469,-3000.0,0.0002292,2]
[365718887,1749849039480,-3000.0,0.0002293,2]
[365718888,1749849039489,-895.44837804,0.00022934,8]
[365718889,1749849039499,-1815.222872,0.0002294,2]
[365718890,1749849039509,-3000.0,0.0002294,2]
[365718891,1749849039519,-420.0,0.00022943,2]
[365718892,1749849039528,-3000.0,0.0002295,2]
[365718893,1749849039537,-3000.0,0.0002296,2]
[365718894,1749849039549,-3000.0,0.0002297,2]
[365718895,1749849039559,-3000.0,0.0002298,2]
[365718896,1749849039569,-3000.0,0.0002299,2]
[365718897,1749849039579,-3000.0,0.00023,2]
[365718898,1749849039588,-1551.53,0.00023,7]
[365718899,1749849039598,-500.0,0.00023,2]
[365718901,1749849039608,-500.0,0.00023,2]
[365718903,1749849039617,-500.0,0.00023,2]
[365718904,1749849039627,-512.72178487,0.00023,2]
[365718906,1749849039637,-500.0,0.00023,2]
[365718908,1749849039647,-500.0,0.00023,2]
[365718909,1749849039657,-503.2118004,0.00023,2]
[365718912,1749849039667,-500.0,0.00023,2]
[365718913,1749849039678,-500.0,0.00023,2]
[365718915,1749849039687,-600.0,0.00023,2]
[365718917,1749849039697,-3000.0,0.0002301,2]
[365718919,1749849039707,-460.0,0.00023011,4]
[365718921,1749849039717,-160.0,0.00023012,2]
[365718923,1749849039727,-460.0,0.00023012,4]
[365718925,1749849039736,-503.34,0.00023012,4]
[365718927,1749849039746,-582.67,0.00023012,4]
[365718929,1749849039755,-752.24,0.00023012,4]
[365718931,1749849039765,-1352.84,0.00023013,4]
[365718933,1749849039775,-520.57,0.00023013,4]
[365718935,1749849039784,-1130.26,0.00023013,4]
[365718937,1749849039793,-761.79,0.00023013,4]
[365718938,1749849039802,-1164.15,0.00023013,4]
[365718940,1749849039811,-460.0,0.00023013,4]
[365718942,1749849039820,-626.84,0.00023013,4]
[365718944,1749849039829,-460.0,0.00023013,4]
[365718946,1749849039838,-990.32,0.00023013,4]
[365718948,1749849039847,-460.0,0.00023013,4]
[365718950,1749849039857,-1305.37,0.00023013,4]
[365718952,1749849039866,-897.99,0.00023013,4]
[365718954,1749849039875,-5854.95,0.00023013,4]
[365718957,1749849039884,-460.0,0.00023013,4]
[365718959,1749849039894,-460.0,0.00023013,4]
[365718961,1749849039903,-460.0,0.00023013,4]
[365718963,1749849039912,-474.640343,0.00023014,2]
[365718964,1749849039921,-165.0,0.00023014,7]
[365718965,1749849039931,-3000.0,0.0002302,2]
[365718966,1749849039940,-3000.0,0.0002303,2]
[365718967,1749849039949,-254.77268796,0.00023033,2]
[365718968,1749849039959,-895.44837804,0.00023038,8]
[365718969,1749849039968,-3000.0,0.0002304,2]
[365718970,1749849039977,-365.2062734,0.00023041,2]
[365718971,1749849039986,-3000.0,0.0002305,2]
[365718972,1749849039995,-3000.0,0.0002306,2]
[365718973,1749849040005,-3000.0,0.0002307,2]
[365718974,1749849040014,-438.26093489,0.00023077,2]
[365718975,1749849040024,-500.0,0.00023078,2]
[365718976,1749849040033,-500.0,0.00023078,2]
[365718977,1749849040042,-3000.0,0.0002308,2]
[365718978,1749849040052,-3000.0,0.0002309,2]
[365718980,1749849040062,-3000.0,0.000231,2]
[365718982,1749849040072,-3000.0,0.0002311,2]
[365718983,1749849040082,-3000.0,0.0002312,2]
[365718984,1749849040091,-3000.0,0.0002313,2]
[365718985,1749849040102,-3000.0,0.0002314,2]
[365718986,1749849040111,-895.44837804,0.00023141,8]
[365718987,1749849040120,-500.0,0.00023146,2]
[365718988,1749849040130,-3000.0,0.0002315,2]
[365718989,1749849040139,-500.0,0.00023155,2]
[365718990,1749849040147,-501.98508171,0.00023155,2]
[365718991,1749849040157,-500.0,0.00023155,2]
[365718992,1749849040166,-3000.0,0.0002316,2]
[365718993,1749849040176,-3000.0,0.0002317,2]
[365718994,1749849040186,-3000.0,0.0002318,2]
[365718995,1749849040195,-3000.0,0.0002319,2]
[365718996,1749849040205,-311.75260451,0.00023193,2]
[365718997,1749849040214,-3000.0,0.000232,2]
[365718998,1749849040223,-115936.39,0.000232,2]
[365718999,1749849040232,-500.0,0.000232,2]
[365719000,1749849040321,-3000.0,0.0002321,2]
[365719001,1749849040343,-4962.943036,0.0002322,2]
[365719002,1749849040352,-895.44837804,0.00023245,8]
[365719003,1749849040362,-153.0,0.00023277,2]
[365719004,1749849040371,-460.0,0.00023285,4]
[365719006,1749849040380,-460.0,0.00023286,4]
[365719007,1749849040389,-503.34,0.00023286,4]
[365719008,1749849040398,-582.67,0.00023286,4]
[365719009,1749849040408,-752.24,0.00023286,4]
[365719010,1749849040417,-1352.84,0.00023287,4]
[365719012,1749849040427,-520.57,0.00023287,4]
[365719014,1749849040435,-1130.26,0.00023287,4]
[365719016,1749849040444,-761.79,0.00023287,4]
[365719018,1749849040454,-1164.15,0.00023287,4]
[365719020,1749849040463,-460.0,0.00023287,4]
[365719022,1749849040474,-626.84,0.00023287,4]
[365719024,1749849040483,-460.0,0.00023287,4]
[365719025,1749849040492,-990.32,0.00023287,4]
[365719027,1749849040502,-460.0,0.00023287,4]
[365719029,1749849040511,-1305.37,0.00023287,4]
[365719031,1749849040520,-897.99,0.00023287,4]
[365719033,1749849040530,-5854.95,0.00023287,4]
[365719036,1749849040539,-460.0,0.00023287,4]
[365719037,1749849040548,-460.0,0.00023287,4]
[365719040,1749849040558,-3000.0,0.000233,2]
[365719041,1749849040567,-151.0,0.000233,8]
[365719043,1749849040577,-3000.0,0.0002331,2]
[365719046,1749849040586,-3000.0,0.0002332,2]
[365719048,1749849040595,-1000.0,0.00023321,2]
[365719050,1749849040604,-3000.0,0.0002333,2]
[365719052,1749849040613,-3000.0,0.0002334,2]
[365719053,1749849040622,-895.44837804,0.00023348,9]
[365719055,1749849040631,-3000.0,0.0002335,2]
[365719056,1749849040640,-3000.0,0.0002336,2]
[365719057,1749849040650,-254.77268796,0.00023366,2]
[365719058,1749849040659,-3000.0,0.0002337,2]
[365719059,1749849040669,-5000.0,0.00023378,2]
[365719060,1749849040678,-3000.0,0.0002338,2]
[365719061,1749849040687,-3000.0,0.0002339,2]
[365719062,1749849040698,-3000.0,0.000234,2]
[365719063,1749849040707,-3000.0,0.0002341,2]
[365719064,1749849040716,-3000.0,0.0002342,2]
[365719065,1749849040726,-3000.0,0.0002343,2]
[365719066,1749849040735,-3000.0,0.0002344,2]
[365719067,1749849040745,-3000.0,0.0002345,2]
[365719068,1749849040754,-895.44837804,0.00023452,9]
[365719069,1749849040762,-3000.0,0.0002346,2]
[365719070,1749849040772,-3000.0,0.0002347,2]
[365719071,1749849040782,-3000.0,0.0002348,2]
[365719072,1749849040791,-3000.0,0.0002349,2]
[365719073,1749849040800,-3000.0,0.000235,2]
[365719075,1749849040809,-151.0,0.000235,7]
[365719076,1749849040818,-117375.35,0.000235,7]
[365719077,1749849040827,-438.26093489,0.00023509,2]
[365719078,1749849040836,-3000.0,0.0002351,2]
[365719079,1749849040849,-3000.0,0.0002352,2]
[365719080,1749849040860,-3000.0,0.0002353,2]
[365719081,1749849040869,-3000.0,0.0002354,2]
[365719082,1749849040878,-508.33639286,0.00023548,2]
[365719083,1749849040888,-505.84635583,0.00023548,2]
[365719084,1749849040897,-1000.0,0.00023548,2]
[365719085,1749849040906,-1000.0,0.00023548,2]
[365719086,1749849040915,-1200.0,0.00023548,2]
[365719087,1749849040925,-3000.0,0.0002355,2]
[365719088,1749849040934,-1096.96,0.00023551,3]
[365719089,1749849040943,-548.48,0.00023551,3]
[365719090,1749849040953,-895.44837804,0.00023555,9]
[365719091,1749849040962,-182.05085615,0.00023559,4]
[365719092,1749849040971,-3000.0,0.0002356,2]
[365719093,1749849040980,-460.0,0.0002356,4]
[365719094,1749849040989,-503.34,0.0002356,4]
[365719095,1749849040998,-582.67,0.0002356,4]
[365719096,1749849041008,-752.24,0.0002356,4]
[365719097,1749849041017,-200.0,0.00023561,4]
[365719098,1749849041026,-200.0,0.00023561,4]
[365719099,1749849041035,-200.0,0.00023561,4]
[365719100,1749849041044,-200.0,0.00023561,4]
[365719101,1749849041054,-200.0,0.00023561,4]
[365719102,1749849041063,-200.0,0.00023561,4]
[365719103,1749849041072,-200.0,0.00023561,4]
[365719104,1749849041081,-200.0,0.00023561,4]
[365719105,1749849041090,-1352.84,0.00023561,4]
[365719106,1749849041099,-520.57,0.00023561,4]
[365719107,1749849041109,-1130.26,0.00023561,4]
[365719108,1749849041119,-761.79,0.00023561,4]
[365719109,1749849041129,-1164.15,0.00023561,4]
[365719110,1749849041138,-460.0,0.00023561,4]
[365719111,1749849041147,-626.84,0.00023561,4]
[365719112,1749849041157,-298.23220875,0.00023561,4]
[365719113,1749849041166,-990.32,0.00023561,4]
[365719114,1749849041177,-460.0,0.00023561,4]
[365719115,1749849041185,-1305.37,0.00023561,4]
[365719116,1749849041195,-897.99,0.00023561,4]
[365719117,1749849041204,-5854.95,0.00023561,4]
[365719118,1749849041214,-460.0,0.00023561,4]
[365719119,1749849041223,-460.0,0.00023561,4]
[365719120,1749849041232,-3000.0,0.0002357,2]
[365719121,1749849041241,-3000.0,0.0002358,2]
[365719122,1749849041251,-3000.0,0.0002359,2]
[365719123,1749849041260,-3000.0,0.000236,2]
[365719124,1749849041271,-151.0,0.000236,10]
[365719125,1749849041281,-3000.0,0.0002361,2]
[365719126,1749849041291,-3000.0,0.0002362,2]
[365719127,1749849041300,-500.0,0.00023626,2]
[365719128,1749849041310,-1005.00855098,0.00023626,2]
[365719129,1749849041319,-3000.0,0.0002363,2]
[365719130,1749849041328,-3000.0,0.0002364,2]
[365719131,1749849041337,-3000.0,0.0002365,2]
[365719132,1749849041347,-160.0,0.00023651,4]
[365719133,1749849041356,-895.44837804,0.00023659,9]
[365719134,1749849041365,-3000.0,0.0002366,2]
[365719135,1749849041375,-3000.0,0.0002367,2]
[365719136,1749849041383,-1517.29,0.00023671,2]
[365719137,1749849041392,-3000.0,0.0002368,2]
[365719138,1749849041402,-3000.0,0.0002369,2]
[365719139,1749849041412,-1000.0,0.00023694,2]
[365719140,1749849041421,-3000.0,0.000237,2]
[365719141,1749849041431,-254.77268796,0.000237,2]
[365719142,1749849041440,-1000.0,0.00023702,2]
[365719143,1749849041449,-3000.0,0.0002371,2]
[365719144,1749849041459,-3000.0,0.0002372,2]
[365719145,1749849041470,-3000.0,0.0002373,2]
[365719146,1749849041482,-4166.00833,0.0002374,2]
[365719147,1749849041491,-311.75260451,0.00023743,2]
[365719148,1749849041500,-194.42097214,0.00023745,2]
[365719149,1749849041510,-513.9116651,0.00023748,2]
[365719150,1749849041519,-895.44837804,0.00023762,9]
[365719151,1749849041529,-503.00566977,0.00023773,2]
[365719152,1749849041538,-500.0,0.00023773,2]
[365719153,1749849041547,-500.0,0.00023773,2]
[365719154,1749849041556,-220.41741011,0.00023773,2]
[365719155,1749849041566,-500.0,0.00023773,2]
[365719156,1749849041575,-500.0,0.00023773,2]
[365719157,1749849041584,-500.0,0.00023773,2]
[365719158,1749849041592,-500.0,0.00023773,2]
[365719159,1749849041601,-501.03912607,0.00023773,2]
[365719160,1749849041610,-500.0,0.00023773,2]
[365719161,1749849041619,-500.0,0.00023773,2]
[365719162,1749849041628,-500.0,0.00023773,2]
[365719163,1749849041637,-500.0,0.00023773,2]
[365719164,1749849041645,-500.0,0.00023773,2]
[365719165,1749849041654,-500.0,0.00023773,2]
[365719166,1749849041663,-500.0,0.00023773,2]
[365719167,1749849041672,-500.0,0.00023773,2]
[365719168,1749849041682,-240.58970932,0.00023773,2]
[365719169,1749849041691,-500.0,0.00023773,2]
[365719170,1749849041700,-500.0,0.00023773,2]
[365719171,1749849041710,-503.41766689,0.00023773,2]
[365719172,1749849041719,-500.0,0.00023773,2]
[365719173,1749849041728,-8666.97855192,0.00023786,2]
[365719174,1749849041737,-151.0,0.000238,7]
[365719175,1749849041747,-151.0,0.000238,7]
[365719176,1749849041756,-1009.65,0.000238,2]
[365719177,1749849041765,-151.0,0.000238,7]
[365719178,1749849041775,-151.0,0.000238,7]
[365719179,1749849041785,-151.0,0.000238,2]
[365719180,1749849041794,-151.0,0.000238,7]
[365719181,1749849041803,-151.0,0.000238,5]
[365719182,1749849041813,-719.25,0.00023815,2]
[365719183,1749849041822,-460.0,0.00023834,4]